bitfinex-derivatives/quotes_ETHF0:USTF0_20250316
["timestamp","ask_amount","ask_price","bid_price","bid_amount"]
[1742135989814,1.4184,1889.7,1889.6,1.0584]
[1742135990019,2.7951,1889.7,1889.6,1.0584]
[1742135990517,2.7951,1889.7,1889.6,1.7475]
[1742135990518,2.0931,1889.7,1889.6,1.7475]
[1742135990815,2.0931,1889.7,1889.6,3.1182]
[1742135991718,0.717,1889.9,1889.8,1.05829]
[1742135991916,2.1175,1889.9,1889.8,1.05829]
[1742135992318,3.17573,1889.9,1889.8,1.05829]
[1742135993613,1.05829,1889.8,1889.7,2.47083428]
[1742135993916,2.45879,1889.8,1889.7,1.41254428]
[1742135994421,2.45879,1889.8,1889.7,0.00794428]
[1742135995216,2.45879,1889.8,1889.7,1.42434428]
[1742135998009,2.45879,1889.8,1889.7,0.00794428]
[1742135998922,1.05862,1889.2,1889.1,9.19394]
[1742135999220,1.05868,1889.1,1889.0,1.05872]
[1742135999416,1.05877,1889.0,1888.9,1.05875]
[1742135999621,0.6785,1889.1,1889.0,1.05874]
[1742135999813,1.05866,1889.2,1889.1,1.05868]
[1742136000014,1.06660428,1889.2,1889.1,1.05868]
[1742136000214,0.00794428,1889.2,1889.1,1.05868]
[1742136000417,1.06656428,1889.2,1889.1,1.3639]
[1742136000617,2.41936428,1889.2,1889.1,2.77]
[1742136001523,2.41936428,1889.2,1889.1,1.4061]
[1742136002013,1.36074428,1889.2,1888.9,1.06670428]
[1742136002221,1.05874,1889.0,1888.9,1.06670428]
[1742136002722,1.05874,1889.0,1888.9,1.73898197]
[1742136003117,1.05874,1889.0,1888.9,0.68022197]
[1742136003418,3.11294,1889.0,1888.9,0.00794428]
[1742136003625,0.7068,1889.1,1888.9,1.38214428]
[1742136003626,1.76551,1889.1,1888.9,1.38214428]
[1742136003919,0.00794428,1889.2,1888.9,2.44090428]
[1742136003920,1.05874,1889.0,1888.9,2.44090428]
[1742136004114,1.05874,1889.0,1888.9,2.44089428]
[1742136004315,1.05874,1889.0,1888.9,5.64869428]
[1742136004515,1.05874,1889.0,1888.9,2.44089428]
[1742136004715,1.05874,1889.0,1888.9,2.44093428]
[1742136005421,1.3902,1889.1,1888.9,2.44088428]
[1742136005617,1.3902,1889.1,1889.0,1.3742]
[1742136005822,2.44888,1889.1,1889.0,1.3742]
[1742136007420,2.44888,1889.1,1889.0,2.43294]
[1742136007618,1.05868,1889.1,1889.0,2.43294]
[1742136007923,2.40080428,1889.2,1889.0,2.093]
[1742136008125,2.40080428,1889.2,1889.1,2.1433]
[1742136008516,0.00794428,1889.2,1889.1,3.20198]
[1742136008717,1.06656428,1889.2,1889.1,2.1433]
[1742136009017,2.40076428,1889.2,1889.1,2.1433]
[1742136009818,3.11846428,1889.2,1889.1,1.4481]
[1742136010827,1.05874,1889.0,1888.9,0.00794428]
[1742136011028,1.05874,1889.0,1888.9,1.34394428]
[1742136011629,1.75014,1889.0,1888.9,1.34394428]
[1742136011928,1.75014,1889.0,1888.9,0.00794428]
[1742136012129,3.13244,1889.0,1888.9,0.00794428]
[1742136012429,6.34024,1889.0,1888.9,0.00794428]
[1742136013119,3.13244,1889.0,1888.9,0.00794428]
[1742136013924,6.34024,1889.0,1888.9,0.00794428]
[1742136014121,9.87324,1889.0,1888.9,0.00794428]
[1742136014324,6.66544,1889.0,1888.9,0.00794428]
[1742136015732,9.87324,1889.0,1888.9,0.00794428]
[1742136016121,1.05896,1888.6,1888.5,1.4351]
[1742136016518,1.05896,1888.6,1888.5,4.6429]
[1742136017217,1.05896,1888.6,1888.5,1.4351]
[1742136017626,1.05896,1888.6,1888.5,2.49412]
[1742136017821,1.05896,1888.6,1888.5,1.4351]
[1742136018024,2.50776,1888.6,1888.5,0.714]
[1742136018226,2.50776,1888.6,1888.5,1.77302]
[1742136018430,1.05894,1888.7,1888.6,1.05891]
[1742136018627,1.05894,1888.7,1888.6,3.07711]
[1742136019130,2.37604,1888.7,1888.6,3.07711]
[1742136020017,1.05889,1888.8,1888.7,1.0589]
[1742136020223,1.05889,1888.8,1888.7,2.3914]
[1742136020420,1.05889,1888.8,1888.7,5.5992]
[1742136020619,1.05889,1888.8,1888.7,2.3914]
[1742136021028,5.826,1889.1,1888.7,1.3325]
[1742136021233,1.05876,1889.1,1889.0,1.0587]
[1742136021533,0.00794428,1889.2,1889.1,1.05868]
[1742136021830,0.00794428,1889.2,1889.1,2.39688]
[1742136022132,1.0585,1889.5,1889.4,1.05851]
[1742136022320,2.47994,1889.6,1889.5,1.05845]
[1742136022521,1.0585,1889.5,1889.4,1.05848]
[1742136022721,1.0585,1889.5,1889.4,1.3383]
[1742136023216,1.7474,1889.5,1889.4,1.3383]
[1742136024030,1.05851,1889.4,1889.3,0.00794428]
[1742136024231,3.15751,1889.4,1889.3,0.00794428]
[1742136025633,3.15751,1889.4,1889.3,1.36674428]
[1742136030336,6.36531,1889.4,1889.3,1.36674428]
[1742136031638,6.36531,1889.4,1889.3,0.00794428]
[1742136031933,1.05874,1889.0,1888.9,1.05875]
[1742136032129,1.05874,1889.0,1888.9,1.78385]
[1742136033937,1.05874,1889.0,1888.9,3.14215]
[1742136035038,1.05874,1889.0,1888.9,2.0834]
[1742136035240,1.05879,1888.9,1888.8,0.00794428]
[1742136035438,3.91549,1888.9,1888.8,0.00794428]
[1742136035836,7.12329,1888.9,1888.8,0.00794428]
[1742136036427,6.0645,1888.9,1888.3,8.0989]
[1742136036738,1.05902,1888.5,1888.4,1.3583]
[1742136037741,1.05902,1888.5,1888.4,2.41737]
[1742136037940,0.00794428,1888.6,1888.5,1.05902]
[1742136038139,0.00794428,1888.6,1888.5,5.68252]
[1742136038329,5.7078,1888.9,1888.5,8.18252]
[1742136038535,1.05895,1888.7,1888.6,1.05892]
[1742136038734,2.5,1888.9,1888.6,1.4157]
[1742136038935,3.55882,1888.9,1888.8,1.05885]
[1742136039447,3.55882,1888.9,1888.8,2.47455]
[1742136039740,4.87912,1888.9,1888.8,1.4157]
[1742136041134,1.0589,1888.7,1888.6,0.7295]
[1742136041545,1.0589,1888.7,1888.6,1.78846]
[1742136041842,1.0589,1888.7,1888.6,0.7295]
[1742136042034,1.05896,1888.6,1888.5,3.58372644]
[1742136042233,1.05896,1888.6,1888.5,2.85392644]
[1742136042434,1.05896,1888.6,1888.5,4.96972]
[1742136043243,1.05896,1888.6,1888.5,3.9107]
[1742136043641,1.77576,1888.6,1888.5,3.9107]
[1742136044137,1.05896,1888.6,1888.5,4.96972]
[1742136045144,1.3387,1888.7,1888.6,1.05896]
[1742136045145,1.05895,1888.7,1888.6,1.05896]
[1742136045334,2.3976,1888.8,1888.7,1.0589]
[1742136045541,1.0589,1888.8,1888.7,1.7178]
[1742136045948,1.06669428,1889.0,1888.9,1.05879]
[1742136046144,0.00794428,1889.0,1888.9,1.05879]
[1742136046446,0.00794428,1889.0,1888.9,2.42439]
[1742136047142,1.44524428,1889.0,1888.9,2.42439]
[1742136047639,2.50398428,1889.0,1888.9,1.3656]
[1742136051051,5.71178428,1889.0,1888.9,1.3656]
[1742136051946,1.0589,1888.7,1888.6,0.7011]
[1742136052546,1.0589,1888.7,1888.6,1.76006]
[1742136052749,1.05883,1888.9,1888.8,1.05882]
[1742136053147,1.06672428,1889.0,1888.9,1.05879]
[1742136054149,1.06671428,1889.0,1888.9,1.05879]
[1742136054752,1.05879,1888.9,1888.8,2.40701]
[1742136055350,1.05879,1888.9,1888.8,1.3482]
[1742136055554,2.39129,1888.9,1888.8,1.3482]
[1742136056447,2.39129,1888.9,1888.8,2.40705]
[1742136056647,2.39129,1888.9,1888.8,1.3482]
[1742136056955,2.39129,1888.9,1888.8,2.40705]
[1742136057253,2.39129,1888.9,1888.8,1.3482]
[1742136057648,1.05879,1888.9,1888.8,2.40705]
[1742136057844,1.06672428,1889.0,1888.9,1.05879]
[1742136058650,1.05879,1888.9,1888.8,2.40699]
[1742136059151,1.06671428,1889.0,1888.9,1.05879]
[1742136059549,0.00794428,1889.0,1888.9,4.26659]
[1742136059758,1.05861,1889.3,1889.2,1.05862]
[1742136060361,3.10646,1889.4,1889.3,1.05857]
[1742136060549,2.43446,1889.4,1889.3,1.05857]
[1742136060860,1.05856,1889.4,1889.3,1.05857]
[1742136061656,4.59164428,1889.5,1889.2,1.3594]
[1742136061859,4.27422428,1889.5,1889.4,1.05851]
[1742136062054,1.05854,1889.4,1889.3,1.05853]
[1742136062361,1.05854,1889.4,1889.3,2.49977428]
[1742136062762,7.05644,1889.4,1889.3,0.00794428]
[1742136062963,3.84864,1889.4,1889.3,0.00794428]
[1742136063159,7.05644,1889.4,1889.3,0.00794428]
[1742136063362,3.84864,1889.4,1889.3,0.00794428]
[1742136063762,7.05644,1889.4,1889.3,0.00794428]
[1742136063954,3.84864,1889.4,1889.3,0.00794428]
[1742136064663,7.05644,1889.4,1889.3,0.00794428]
[1742136068360,3.84864,1889.4,1889.3,0.00794428]
[1742136068564,7.38064,1889.4,1889.3,0.00794428]
[1742136068752,3.84864,1889.4,1889.3,0.00794428]
[1742136068959,3.84864,1889.4,1889.3,1.42004428]
[1742136072355,1.05854,1889.4,1889.3,2.47861428]
[1742136072671,0.00794428,1889.5,1889.4,1.05851]
[1742136072672,1.06645428,1889.5,1889.4,1.05851]
[1742136072960,0.00794428,1889.5,1889.4,2.42001]
[1742136073872,3.2078,1889.8,1889.7,1.05834]
[1742136074567,2.48417,1889.9,1889.8,1.05829]
[1742136074765,1.05829,1889.8,1889.7,3.10149]
[1742136075066,1.05829,1889.8,1889.7,1.74059]
[1742136075961,1.05829,1889.8,1889.7,0.6823]
[1742136076762,1.05829,1889.8,1889.3,0.00794428]
[1742136076763,1.05851,1889.4,1889.3,0.00794428]
[1742136076962,1.0585,1889.5,1889.4,1.05847]
[1742136077265,1.0585,1889.5,1889.4,0.7112]
[1742136077461,1.05851,1889.4,1889.3,0.00794428]
[1742136079570,1.05851,1889.4,1889.3,1.06651428]
[1742136080770,1.05838,1889.7,1889.6,1.05835]
[1742136080972,6.17672,1889.9,1889.4,3.2078]
[1742136080973,2.64578,1889.8,1889.4,3.2078]
[1742136081170,1.05845,1889.5,1889.4,1.05845]
[1742136081372,1.3323,1889.7,1889.3,0.36187072]
[1742136081572,1.05842,1889.6,1889.5,1.05841]
[1742136081972,2.39069,1889.7,1889.6,1.0584]
[1742136082170,1.05843,1889.6,1889.5,1.05841]
[1742136082364,1.05843,1889.6,1889.5,0.7266]
[1742136082667,1.05845,1889.5,1889.4,1.05847]
[1742136082862,2.49045,1889.5,1889.4,1.05847]
[1742136083070,1.05851,1889.4,1889.3,2.14703072]
[1742136083275,2.49051,1889.4,1889.3,0.00794428]
[1742136083671,5.69831,1889.4,1889.3,0.00794428]
[1742136084072,2.49051,1889.4,1889.3,0.00794428]
[1742136084766,1.05848,1889.5,1889.4,1.05845]
[1742136084972,1.05844,1889.6,1889.5,1.05845]
[1742136085178,5.69819,1889.7,1889.6,1.0584]
[1742136085580,1.0584,1889.6,1889.5,1.75752]
[1742136085782,2.493,1889.6,1889.5,1.75752]
[1742136086079,2.493,1889.6,1889.5,1.75755]
[1742136087073,2.493,1889.6,1889.5,0.6991]
[1742136087474,1.05845,1889.5,1889.4,1.73257]
[1742136087672,2.49305,1889.5,1889.4,0.6741]
[1742136087874,1.05845,1889.5,1889.4,1.73261]
[1742136088181,0.6627,1889.6,1889.5,1.05845]
[1742136088182,2.49305,1889.6,1889.5,1.05845]
[1742136088376,1.05845,1889.6,1889.5,1.05845]
[1742136089079,1.05845,1889.5,1889.4,1.73257]
[1742136090886,1.05845,1889.5,1889.4,1.4388]
[1742136091076,2.43815,1889.5,1889.4,1.4388]
[1742136091482,3.79445,1889.5,1889.4,1.4388]
[1742136093582,1.05851,1889.4,1889.3,0.00794428]
[1742136093782,2.46181,1889.4,1889.3,0.00794428]
[1742136093986,2.46181,1889.4,1889.3,1.33894428]
[1742136095281,5.66961,1889.4,1889.3,1.33894428]
[1742136095480,2.46181,1889.4,1889.3,1.33894428]
[1742136096078,2.46181,1889.4,1889.3,0.00794428]
[1742136096981,5.66961,1889.4,1889.3,0.00794428]
[1742136101578,1.05851,1889.4,1889.3,1.73741428]
[1742136104491,1.05851,1889.4,1889.3,0.00794428]
[1742136104694,1.73101,1889.4,1889.3,0.00794428]
[1742136105286,1.73101,1889.4,1889.3,1.44254428]
[1742136106286,1.05851,1889.4,1889.3,2.50111428]
[1742136108297,1.05851,1889.4,1889.3,1.44254428]
[1742136108596,1.05851,1889.4,1889.3,2.50111428]
[1742136109299,1.05851,1889.4,1889.3,1.44254428]
[1742136109598,1.74051,1889.4,1889.3,1.44254428]
[1742136110889,2.50261,1889.4,1889.3,1.44254428]
[1742136111088,1.05851,1889.4,1889.3,2.50111428]
[1742136112500,1.0585,1889.5,1889.4,1.05846]
[1742136112702,1.0585,1889.5,1889.4,3.09166]
[1742136117407,1.0585,1889.5,1889.4,2.0332]
[1742136117608,1.0585,1889.5,1889.4,1.342]
[1742136117814,2.4871,1889.5,1889.4,1.342]
[1742136118507,1.05851,1889.4,1889.3,0.00794428]
[1742136118807,2.50961,1889.4,1889.3,1.41104428]
[1742136119606,1.05851,1889.4,1889.3,1.41104428]
[1742136119810,2.45121,1889.4,1889.3,1.41104428]
[1742136124100,1.05879,1888.9,1888.8,3.2078]
[1742136124306,2.64642,1889.3,1888.7,1.4238]
[1742136124307,1.05885,1888.8,1888.7,1.4238]
[1742136124604,1.05885,1888.8,1888.7,2.4827]
[1742136124808,1.05885,1888.8,1888.7,3.15638765]
[1742136125015,1.05885,1888.8,1888.7,2.09748765]
[1742136125515,1.05885,1888.8,1888.7,3.47618765]
[1742136125904,2.45955,1888.8,1888.7,4.53508765]
[1742136126304,2.45955,1888.8,1888.7,2.8025]
[1742136128518,2.45955,1888.8,1888.7,2.0873]
[1742136129405,2.45955,1888.8,1888.7,3.1462]
[1742136129917,1.05885,1888.8,1888.7,3.1462]
[1742136132920,1.43154428,1888.9,1888.8,1.05885]
[1742136132921,0.00794428,1888.9,1888.8,1.05885]
[1742136133113,0.00794428,1888.9,1888.8,3.16405]
[1742136133716,1.05861,1889.3,1888.9,2.64689]
[1742136133916,6.55606,1889.5,1888.9,2.64689]
[1742136133917,1.05856,1889.4,1889.3,1.05853]
[1742136134117,1.05856,1889.4,1889.3,3.16813]
[1742136134321,1.05856,1889.4,1889.3,3.85243]
[1742136134521,2.38696,1889.4,1889.3,3.85243]
[1742136135020,1.05856,1889.4,1889.3,3.85243]
[1742136135411,12.00246,1890.0,1889.3,2.7939]
[1742136135617,1.3284,1889.7,1889.4,1.4499]
[1742136136019,1.05844,1889.6,1889.5,1.05841]
[1742136136819,1.05845,1889.5,1889.4,2.50838]
[1742136137122,2.39685,1889.5,1889.4,2.50838]
[1742136137308,1.3384,1889.5,1889.4,2.50838]
[1742136137510,2.39685,1889.5,1889.4,2.50838]
[1742136139319,2.39685,1889.5,1889.4,1.4499]
[1742136139509,1.05857,1889.3,1889.2,1.41254644]
[1742136139710,1.05857,1889.3,1889.2,1.05862]
[1742136140516,1.05865,1889.2,1889.1,1.05864]
[1742136140719,1.05861,1889.3,1889.2,1.05862]
[1742136140918,2.49331,1889.3,1889.2,1.05862]
[1742136142319,1.74775,1889.4,1889.3,1.05857]
[1742136142524,1.05855,1889.4,1889.3,1.05857]
[1742136142825,1.05861,1889.3,1889.2,1.05859]
[1742136143024,1.05861,1889.3,1889.2,4.26639]
[1742136143423,1.05862,1889.2,1889.1,1.34]
[1742136143621,1.74612,1889.2,1889.1,1.34]
[1742136144221,2.42172,1889.2,1889.1,1.34]
[1742136145129,2.42172,1889.2,1889.1,2.39868]
[1742136145327,1.74612,1889.2,1889.1,2.39868]
[1742136145827,1.05862,1889.2,1889.1,2.39868]
[1742136146129,1.05862,1889.2,1889.1,2.39864]
[1742136146926,0.6875,1889.4,1889.1,3.9867]
[1742136147127,1.74606,1889.4,1889.3,1.05857]
[1742136147522,1.74606,1889.4,1889.3,1.73757]
[1742136147833,2.50838,1889.5,1889.4,1.05851]
[1742136148018,2.50838,1889.5,1889.4,3.15601]
[1742136148415,1.05848,1889.5,1889.4,3.15601]
[1742136149826,1.05845,1889.6,1889.5,1.05845]
[1742136150024,1.05845,1889.6,1889.5,2.38165]
[1742136151821,1.4135,1889.8,1889.5,3.96931]
[1742136152026,1.05826,1889.9,1889.8,1.05823]
[1742136152528,1.05826,1889.9,1889.8,2.51443]
[1742136152823,2.45036,1889.9,1889.8,2.51443]
[1742136153439,1.05806,1890.3,1890.2,1.05803]
[1742136154030,2.45004,1890.5,1890.4,1.05795]
[1742136154235,1.05775,1890.8,1890.4,6.17482]
[1742136154536,1.05775,1890.8,1890.7,1.05775]
[1742136154733,1.05775,1890.8,1890.6,3.2078]
[1742136154734,1.05778,1890.7,1890.6,4.26559]
[1742136154927,4.03631,1890.9,1890.5,0.7061]
[1742136155125,2.64433,1890.8,1890.5,0.71404428]
[1742136155329,2.42296,1890.8,1890.7,1.05778]
[1742136155836,1.05772,1890.9,1890.8,1.05772]
[1742136156327,1.05767,1890.9,1890.8,1.0577]
[1742136156533,4.95221,1891.1,1890.7,4.224]
[1742136156831,1.05766,1891.0,1890.8,1.0577]
[1742136157028,1.05773,1890.8,1890.7,4.224]
[1742136157829,1.05773,1890.8,1890.7,5.28178]
[1742136158137,1.05773,1890.8,1890.7,4.224]
[1742136158732,1.05773,1890.8,1890.7,5.28178]
[1742136159534,1.05773,1890.8,1890.7,4.224]
[1742136160332,5.85203,1890.9,1890.5,0.71404428]
[1742136160538,5.85203,1890.9,1890.5,4.24304428]
[1742136160539,1.05784,1890.6,1890.5,4.24304428]
[1742136161232,3.2078,1890.9,1890.5,4.24304428]
[1742136161436,1.0577,1890.9,1890.6,3.2078]
[1742136161636,2.44654,1891.0,1890.8,1.05769]
[1742136162338,1.05767,1890.9,1890.8,1.05769]
[1742136163226,1.05774,1890.8,1890.7,1.05776]
[1742136163937,1.05771,1890.9,1890.7,1.05776]
[1742136164933,1.05771,1890.9,1890.7,1.05773]
[1742136165141,1.05773,1890.8,1890.7,1.05773]
[1742136165337,1.05778,1890.7,1890.6,4.2656]
[1742136165526,1.05778,1890.7,1890.6,7.7936]
[1742136165730,1.4001,1890.9,1890.6,7.7936]
[1742136165931,1.05778,1890.7,1890.6,7.7936]
[1742136166531,1.05778,1890.7,1890.6,4.2656]
[1742136166839,1.05778,1890.7,1890.6,3.2078]
[1742136167427,1.74048,1890.7,1890.6,3.2078]
[1742136167736,3.11908,1890.7,1890.6,3.2078]
[1742136169342,1.05784,1890.6,1890.5,0.00794428]
[1742136169739,3.11911,1890.7,1890.6,1.05784]
[1742136170132,1.05784,1890.6,1890.5,1.06579428]
[1742136170436,2.43644,1890.6,1890.5,0.00794428]
[1742136170735,1.74051,1890.7,1890.6,1.05784]
[1742136170939,3.19681,1890.7,1890.6,1.05784]
[1742136172140,3.19681,1890.7,1890.6,2.48034]
[1742136174148,3.19681,1890.7,1890.6,3.17024]
[1742136175342,1.05775,1890.8,1890.7,1.05775]
[1742136175545,2.49915,1890.8,1890.7,2.40598]
[1742136177141,1.05784,1890.6,1890.5,3.53594428]
[1742136177441,1.05784,1890.6,1890.5,0.00794428]
[1742136177646,1.05784,1890.6,1890.5,1.40224428]
[1742136177845,3.78604,1890.6,1890.5,1.40224428]
[1742136178245,3.78604,1890.6,1890.5,0.00794428]
[1742136179645,3.78604,1890.6,1890.5,1.46454428]
[1742136180348,3.78604,1890.6,1890.5,0.00794428]
[1742136181340,3.78604,1890.6,1890.5,1.06584428]
[1742136181541,3.78604,1890.6,1890.5,1.46454428]
[1742136184561,1.75914,1890.6,1890.5,2.52244428]
[1742136184752,1.05775,1890.8,1890.5,4.99254428]
[1742136184948,1.05775,1890.8,1890.7,1.05773]
[1742136185248,2.51795,1890.8,1890.7,1.05773]
[1742136185451,1.05778,1890.7,1890.6,4.93549]
[1742136185843,1.05776,1890.8,1890.7,1.05773]
[1742136186056,3.0751,1890.9,1890.8,1.05773]
[1742136186448,1.05764,1891.0,1890.9,1.05762]
[1742136186752,1.05767,1890.9,1890.8,4.26549]
[1742136186940,2.39417,1890.9,1890.8,4.26549]
[1742136187347,1.05763,1891.0,1890.9,1.05762]
[1742136188945,1.05763,1891.0,1890.8,3.2078]
[1742136188946,1.05767,1890.9,1890.8,4.26549]
[1742136190352,1.05773,1890.8,1890.7,0.6791]
[1742136190549,1.05784,1890.6,1890.5,4.59382428]
[1742136190758,3.09511,1890.7,1890.6,1.05784]
[1742136191451,1.05784,1890.6,1890.5,4.20855072]
[1742136191652,2.39644,1890.6,1890.5,0.68055072]
[1742136192155,1.3386,1890.6,1890.5,1.73845072]
[1742136192551,2.39644,1890.6,1890.5,1.73845072]
[1742136192743,1.3386,1890.6,1890.5,1.73845072]
[1742136192941,2.39644,1890.6,1890.5,1.73845072]
[1742136193152,1.3386,1890.6,1890.5,1.73845072]
[1742136193551,1.05777,1890.8,1890.5,0.68055072]
[1742136193750,1.05778,1890.7,1890.6,1.05781]
[1742136194055,2.41968,1890.7,1890.6,0.67260644]
[1742136194654,2.41968,1890.7,1890.6,1.73044644]
[1742136195052,1.05784,1890.6,1890.5,0.00794428]
[1742136195254,2.45464,1890.6,1890.5,0.00794428]
[1742136195456,3.80684,1890.6,1890.5,0.00794428]
[1742136197650,3.14024,1890.6,1890.5,0.00794428]
[1742136197844,1.05784,1890.6,1890.5,4.27364428]
[1742136198049,1.05784,1890.6,1890.5,4.9470685]
[1742136198255,1.05784,1890.6,1890.5,1.7392385]
[1742136199357,1.4365,1890.7,1890.5,0.6813685]
[1742136199655,1.05784,1890.6,1890.5,1.7392285]
[1742136199856,1.4365,1890.7,1890.6,1.05784]
[1742136200154,1.4365,1890.7,1890.6,1.78804]
[1742136200457,2.49428,1890.7,1890.6,1.78804]
[1742136200655,2.49428,1890.7,1890.6,1.40365173]
[1742136200852,2.49428,1890.7,1890.6,2.06525173]
[1742136201255,2.49428,1890.7,1890.6,1.3918]
[1742136201755,2.49428,1890.7,1890.6,2.44964]
[1742136202251,1.05784,1890.6,1890.5,1.06580428]
[1742136202551,1.05784,1890.6,1890.5,1.45574428]
[1742136202552,2.51124,1890.6,1890.5,1.45574428]
[1742136202753,1.05784,1890.6,1890.5,1.45574428]
[1742136203354,1.05784,1890.6,1890.5,2.51364428]
[1742136204464,2.51122,1890.7,1890.6,1.05784]
[1742136204761,2.51122,1890.7,1890.6,2.47874]
[1742136209764,2.44568,1890.8,1890.7,1.05778]
[1742136209958,3.85538,1890.8,1890.7,3.78878]
[1742136210665,1.05773,1890.9,1890.8,1.05769]
[1742136210870,1.71588,1891.1,1890.8,3.97152]
[1742136211061,1.05767,1891.0,1890.9,1.05764]
[1742136211261,3.17357,1891.0,1890.9,1.3273]
[1742136212163,2.1159,1891.0,1890.7,2.46144]
[1742136212359,1.05773,1890.8,1890.7,3.07974]
[1742136212956,1.05773,1890.8,1890.7,2.022]
[1742136213260,2.64436,1890.8,1890.5,0.00794428]
[1742136213465,1.05784,1890.6,1890.5,2.47739428]
[1742136213859,1.391,1890.6,1890.5,2.47739428]
[1742136214057,1.05777,1890.8,1890.7,1.05774]
[1742136214262,2.44877,1890.8,1890.7,1.05774]
[1742136214660,2.44877,1890.8,1890.7,2.46934]
[1742136215260,2.44877,1890.8,1890.7,1.4116]
[1742136216658,1.05784,1890.6,1890.5,4.27360428]
[1742136216969,1.05784,1890.6,1890.5,1.06580428]
[1742136217355,2.41994,1890.6,1890.5,1.73909472]
[1742136217967,2.41994,1890.6,1890.5,3.18919472]
[1742136218770,2.41994,1890.6,1890.5,2.13133472]
[1742136218964,1.05784,1890.6,1890.5,3.18923472]
[1742136221073,1.05784,1890.6,1890.5,2.13133472]
[1742136222672,1.05784,1890.6,1890.5,1.45804428]
[1742136223275,1.05784,1890.6,1890.5,2.51594428]
[1742136223769,1.05784,1890.6,1890.5,1.45804428]
[1742136224365,1.05784,1890.6,1890.5,2.51594428]
[1742136224569,1.05784,1890.6,1890.5,1.45804428]
[1742136226673,1.05784,1890.6,1890.5,2.51594428]
[1742136229874,1.05784,1890.6,1890.5,1.45804428]
[1742136234270,1.05784,1890.6,1890.5,0.00794428]
[1742136234473,2.47974,1890.6,1890.5,0.00794428]
[1742136234675,9.7479,1890.6,1889.9,3.2078]
[1742136234867,1.05823,1889.9,1889.8,1.3597]
[1742136235068,1.05823,1889.9,1889.8,3.09203158]
[1742136235271,2.4801,1890.0,1889.9,1.05823]
[1742136235479,2.4801,1890.0,1889.9,1.433]
[1742136236371,1.05823,1889.9,1889.8,0.00794428]
[1742136236570,2.48013,1889.9,1889.8,1.44094428]
[1742136237567,1.05851,1889.4,1889.3,6.7348]
[1742136237772,2.64591,1889.7,1889.3,9.5232]
[1742136237984,1.05845,1889.5,1889.4,1.3943]
[1742136238384,2.39205,1889.5,1889.4,1.3943]
[1742136238674,1.05837,1889.7,1889.6,1.05838]
[1742136239281,2.39193,1889.8,1889.7,1.05834]
[1742136239473,1.3336,1889.8,1889.6,2.45266]
[1742136239675,1.3336,1889.8,1889.7,1.05834]
[1742136239875,1.3336,1889.8,1889.7,3.17814]
[1742136240178,6.18031428,1890.1,1889.9,1.05819]
[1742136240179,0.00794428,1890.1,1889.9,1.05819]
[1742136240373,1.06606428,1890.1,1890.0,1.3943]
[1742136240574,1.05823,1889.9,1889.8,0.7182]
[1742136241374,1.05823,1889.9,1889.7,8.51962]
[1742136241375,1.05829,1889.8,1889.7,4.2535]
[1742136241776,1.05829,1889.8,1889.7,5.5997]
[1742136241982,1.05829,1889.8,1889.7,2.0717]
[1742136242174,2.44129,1889.8,1889.7,2.0717]
[1742136242376,1.0584,1889.6,1889.5,0.6941]
[1742136242571,2.44138,1889.7,1889.5,0.6941]
[1742136242783,2.44138,1889.7,1889.6,1.0584]
[1742136243377,1.383,1889.7,1889.6,1.0584]
[1742136243584,1.05834,1889.7,1889.6,1.0584]
[1742136243783,1.05834,1889.7,1889.6,1.4103]
[1742136244083,1.05834,1889.7,1889.6,2.4687]
[1742136244588,1.05834,1889.7,1889.6,1.4103]
[1742136245187,1.05845,1889.5,1889.4,0.7083]
[1742136245575,1.05851,1889.4,1889.3,1.06648428]
[1742136245781,1.05851,1889.5,1889.4,1.05849]
[1742136245981,1.05844,1889.6,1889.5,1.05845]
[1742136246377,0.6589,1889.8,1889.4,3.2078]
[1742136246378,1.05845,1889.5,1889.4,3.2078]
[1742136246581,1.05851,1889.4,1889.3,0.00794428]
[1742136246781,1.05851,1889.4,1889.3,1.41674428]
[1742136247286,1.71741,1889.4,1889.3,1.41674428]
[1742136247489,3.11241,1889.4,1889.3,1.41674428]
[1742136247876,3.11241,1889.4,1889.3,0.00794428]
[1742136248379,3.11241,1889.4,1889.1,1.4088]
[1742136248380,1.05862,1889.2,1889.1,1.4088]
[1742136248989,2.45362,1889.2,1889.1,1.4088]
[1742136253595,1.05868,1889.1,1889.0,0.00794428]
[1742136253786,3.09728,1889.1,1889.0,1.43934428]
[1742136256197,1.05868,1889.1,1889.0,1.43934428]
[1742136256502,1.05868,1889.1,1889.0,2.49808428]
[1742136257604,1.05868,1889.1,1889.0,1.43934428]
[1742136257798,1.05868,1889.1,1889.0,0.00794428]
[1742136257997,1.05868,1889.1,1889.0,1.41444428]
[1742136258301,2.40978,1889.1,1889.0,1.41444428]
[1742136259097,2.40978,1889.1,1889.0,2.47318428]
[1742136259299,2.40978,1889.1,1889.0,1.41444428]
[1742136259497,2.40978,1889.1,1889.0,0.00794428]
[1742136259702,2.40978,1889.1,1888.7,3.56172644]
[1742136259703,1.05877,1889.0,1888.9,1.05876]
[1742136260302,1.05877,1889.0,1888.9,3.13456]
[1742136261406,1.05877,1889.0,1888.9,2.0758]
[1742136262501,1.05877,1889.0,1888.9,3.13459]
[1742136262708,1.06665428,1889.1,1889.0,1.05874]
[1742136262900,1.06665428,1889.1,1889.0,2.48344]
[1742136265109,1.06665428,1889.1,1889.0,1.4247]
[1742136265312,1.76065428,1889.1,1889.0,1.4247]
[1742136265511,3.15115428,1889.1,1889.0,1.4247]
[1742136266401,1.05879,1888.9,1888.8,0.00794428]
[1742136266603,1.05879,1888.9,1888.8,1.42184428]
[1742136266999,2.44929,1888.9,1888.8,1.42184428]